[Event "Maharashtra Challenge Matches 2023"]
[Site "Nagpur"]
[Date "2023.06.05"]
[Round "8.1"]
[White "Sadhwani, Raunak"]
[Black "Short, Nigel D"]
[Result "1-0"]
[Annotator "TA"]
[ECO "E10"]
[WhiteElo "2627"]
[BlackElo "2597"]
[PlyCount "53"]
[EventDate "2023.06.03"]
[EventType "match"]
[EventCountry "IND"]
[SourceTitle "playchess.com"]
[Source "ChessBase"]
[SourceQuality "1"]
[TimeControl "180+2"]

{[%evp 16,53,11,0,25,0,23,0,0,0,14,9,24,25,25,19,21,16,31,32,16,0,0,-8,24,37,43,27,37,6,7,0,122,0,235,98,1400,1386,1340,1315]} 1. d4 {[%emt 0:00:01]} Nf6 {[%emt 0:00:02]} 2. c4 {[%emt 0:00:01]} e6 {[%emt 0:00:01]} 3. Nf3 {[%emt 0:00:01]} d5 {[%emt 0:00:02]} 4. g3 {[%emt 0:00:01]} Bb4+ {[%emt 0:00:01]} 5. Bd2 {[%emt 0:00:01]} Be7 {[%emt 0:00:02]} 6. Bg2 {[%emt 0:00:02]} O-O {[%emt 0:00:01]} 7. O-O {[%emt 0:00:01]} Nbd7 {[%emt 0:00:02]} 8. Qc2 {[%emt 0:00:02]} c6 {[%emt 0:00:05]} 9. Rd1 {[%emt 0:00:01]} a5 {[%emt 0:00:08] E11: Bogo-Indian.} 10. b3 {[%emt 0:00:12]} Ne4 {[%emt 0:00:10]} 11. Be1 {[%emt 0:00:08]} (11. Be3 $5) 11... f5 {[%emt 0:00:03] [#] The position is equal.} 12. Nc3 $146 {[%emt 0:00:04]} ({Predecessor:} 12. e3 Bd6 13. Nc3 g5 14. cxd5 exd5 15. Ne2 Qe7 16. Nc1 f4 17. exf4 gxf4 18. Nd3 {0-1 Bunda,V (2262)-Omelja,A (2442) SVK-chT1E 1920 2019 (4.2)}) 12... Qe8 {[%emt 0:00:05]} 13. a3 {[%emt 0:00:13]} Qh5 {[%emt 0:00:04]} 14. e3 {[%emt 0:00:13][%cal Ob3b4,Be2e3,Be3e4][%mdl 32]} g5 {[%emt 0:00:13]} 15. Ne5 {[%emt 0:00:02]} (15. b4 {is interesting.} g4 16. Ne5 Bd6 17. Nxe4 fxe4 18. Nxd7 Bxd7 19. bxa5 Rf6 20. Qb2) 15... Nxe5 {[%emt 0:00:06]} (15... Nxc3 {simplifies} 16. Qxc3 Nxe5 17. dxe5 Rd8) 16. dxe5 {[%emt 0:00:02]} Nxc3 17. Bxc3 {[%emt 0:00:02]} f4 {[%emt 0:00:47]} 18. e4 {[%emt 0:00:01]} dxc4 {[%emt 0:00:06]} 19. bxc4 {[%emt 0:00:03]} f3 {[%emt 0:00:19]} (19... b6 $5) 20. Bf1 {[%emt 0:00:02]} c5 {[%emt 0:00:01]} 21. Rab1 {[%emt 0:00:05]} Ra6 {[%emt 0:00:14]} 22. Rb5 $36 {[%emt 0:00:23][%mdl 2048] White has some pressure.} b6 $1 {[%emt 0:00:06]} 23. Rbb1 {[%emt 0:00:04]} Rd8 {[%emt 0:00:09]} (23... Qe8 $11 {keeps the balance.}) 24. h3 {[%emt 0:00:38]} (24. Rxd8+ $16 Bxd8 25. Rd1) 24... g4 $2 {[%emt 0:00:16]} (24... Bd7 $1 $11) 25. Qa4 {[%emt 0:00:11]} (25. Rxd8+ $18 {is more deadly.} Bxd8 26. hxg4) 25... gxh3 $2 {[%emt 0:00:16][%mdl 8192] [#]} (25... Rxd1 $2 26. Rxd1 Kf8 27. hxg4 $18) (25... Rf8 $16) 26. Rxd8+ $1 $18 {[%emt 0:00:10]} ({Not} 26. Kh2 Rf8 $16) 26... Bxd8 {[%emt 0:00:01] [#]} 27. Qc6 $1 {[%emt 0:00:02] Weighted Error Value: White=0.26 (precise) /Black=0.35} 1-0

[Event "Maharashtra Challenge Matches 2023"]
[Site "Nagpur"]
[Date "2023.06.05"]
[Round "9.1"]
[White "Vidit, Santosh Gujrathi"]
[Black "Svidler, Peter"]
[Result "1/2-1/2"]
[Annotator "TA"]
[ECO "A41"]
[WhiteElo "2712"]
[BlackElo "2683"]
[PlyCount "133"]
[EventDate "2023.06.03"]
[EventType "match"]
[EventCountry "IND"]
[SourceTitle "playchess.com"]
[Source "ChessBase"]
[SourceQuality "1"]
[TimeControl "180+2"]

{[%evp 18,133,92,99,93,59,61,48,84,74,96,86,88,45,43,39,52,60,64,72,53,8,7,8,75,76,83,83,84,80,121,93,78,95,99,102,112,102,108,60,48,48,48,51,75,58,112,119,119,110,199,199,199,199,199,202,522,108,108,108,108,108,108,108,29963,29959,29963,29966,29965,29964,29966,29969,29969,0,29962,29966,29965,29967,29975,29963,29950,29959,29952,0,12297,108,6165,5110,29975,2299,1657,108,108,108,29989,108,108,108,153,153,153,108,108,108,108,108,108,108,108,108,108,108,153,153,166,166,166,166]} 1. d4 {[%emt 0:00:02]} d6 {[%emt 0:00:00]} 2. Nf3 {[%emt 0:00:02]} Bg4 {[%emt 0:00:04]} 3. e4 {[%emt 0:00:05]} Nf6 {[%emt 0:00:02]} 4. Nc3 {[%emt 0:00:02]} e6 {[%emt 0:00:02]} 5. h3 {[%emt 0:00:02]} Bh5 {[%emt 0:00:01]} 6. g4 {[%emt 0:00:04]} Bg6 {[%emt 0:00:01]} 7. Qe2 {[%emt 0:00:02]} c6 {[%emt 0:00:19]} 8. h4 {[%emt 0:00:14]} h5 {[%emt 0:00:01]} 9. g5 {[%emt 0:00:02]} Nfd7 {[%emt 0:00:01]} 10. Bh3 {[%emt 0:00:12]} Be7 {[%emt 0:00:04] A41: 1 d4 d6: Tartakower System and Modern Defence.} 11. Bf4 {[%emt 0:00:28]} (11. Be3 d5 12. Nd2 Na6 13. O-O Nb4 14. Rac1 dxe4 15. Ncxe4 Nd5 16. c4 Nxe3 17. Qxe3 O-O 18. f4 Bf5 19. Bg2 Re8 {1-0 Vidit,S (2726)-Svidler,P (2723) Pepe Cuenca Invitational 2020 (1.8)}) 11... O-O {[%emt 0:00:36]} 12. O-O {[%emt 0:00:05]} d5 {[%emt 0:00:01] White is slightly better.} 13. a3 {[%emt 0:00:15] [#]} Na6 $146 {[%emt 0:00:09]} ({Predecessor:} 13... Re8 14. Rfe1 a6 15. Bg3 b5 16. Nd2 Qb6 17. f4 dxe4 18. Bf2 Qc7 19. Ncxe4 Nf8 {1-0 Okhai,S (2088)-Mossong,H (2132) BCF-chT3Sb 1617 (4NCL) 2016 (5.73)}) 14. Rfe1 {[%emt 0:00:04]} Re8 {[%emt 0:00:09]} 15. Rad1 {[%emt 0:00:16]} Nc7 {[%emt 0:00:03]} 16. Bg3 {[%emt 0:00:04]} a6 {[%emt 0:00:17]} 17. Nd2 {[%emt 0:00:52]} Nb5 {[%emt 0:00:13]} 18. Nxb5 {[%emt 0:00:03]} axb5 {[%emt 0:00:01]} 19. Bg2 {[%emt 0:00:03]} Nb6 {[%emt 0:00:12]} 20. Bf3 {[%emt 0:00:06]} Nc4 {[%emt 0:00:39]} (20... Na4 $11 {remains equal.}) 21. Nxc4 $16 {[%emt 0:00:04]} (21. Bxh5 Bxh5 22. Qxh5 Nxb2 $15) 21... bxc4 {[%emt 0:00:01]} 22. exd5 {[%emt 0:00:03]} (22. Bxh5 Bxe4 23. Bf3 Bf5 $11) 22... exd5 {[%emt 0:00:30]} 23. Bxh5 {[%emt 0:00:01]} Bf8 {[%emt 0:00:05]} 24. Qf3 {[%emt 0:00:10]} Bxh5 {[%emt 0:00:02]} 25. Qxh5 {[%emt 0:00:01]} Rxe1+ {[%emt 0:00:05]} 26. Rxe1 {[%emt 0:00:01]} Qd7 {[%emt 0:00:03] Black is weak on the dark squares} 27. Qf3 {[%emt 0:00:05]} (27. g6 {feels hotter.} fxg6 28. Qxg6 Qf7 29. Qg4) 27... Re8 {[%emt 0:00:03]} 28. Re5 {[%emt 0:00:07]} (28. Be5 $16) 28... Rxe5 $14 {[%emt 0:00:02]} 29. Bxe5 {[%emt 0:00:01][%mdl 4096] Endgame KQB-KQB} Qe6 {[%emt 0:00:03]} 30. Kg2 {[%emt 0:00:04]} c5 {[%emt 0:00:02]} 31. c3 {[%emt 0:00:02]} b5 {[%emt 0:00:01]} (31... cxd4 $14 32. Bxd4 (32. cxd4 g6 $16) 32... Bd6) 32. Qh3 $16 {[%emt 0:00:05]} Qg6 {[%emt 0:00:04]} 33. Qg4 $1 {[%emt 0:00:06]} Qc2 {[%emt 0:00:03]} (33... f6 $16 {was necessary.}) 34. h5 $1 $18 {[%emt 0:00:06] Threatens to win with g6.} (34. dxc5 Bxc5 35. Qc8+ Kh7) 34... cxd4 {[%emt 0:00:03]} (34... Qxb2 $2 35. dxc5 Bxc5 36. Qc8+ Bf8 37. Bd6 $18) 35. Bxd4 {[%emt 0:00:03] g6 is the strong threat.} (35. Qxd4 $6 Qf5 $16) 35... Qxb2 {[%emt 0:00:01] [#]} 36. g6 $1 {[%emt 0:00:06] White wants to mate with Qd7.} Qxa3 $2 {[%emt 0:00:02]} (36... Qb1 37. gxf7+ Kxf7) 37. Qf5 $2 {[%emt 0:00:04]} (37. gxf7+ $18 {and the rest is easy.} Kxf7 38. Qf5+ Kg8 39. Qxd5+ Kh8 40. Qxb5) 37... Qe7 $16 {[%emt 0:00:02]} 38. Qxd5 {[%emt 0:00:01] White is much more active.} Qe6 {[%emt 0:00:01]} 39. Qxe6 {[%emt 0:00:03]} (39. Qxb5 $6 Qg4+ 40. Kf1 Qd1+ 41. Kg2 Qg4+ 42. Kf1 Qd1+ 43. Kg2 Qg4+ $11) 39... fxe6 {[%emt 0:00:01] KB-KB} 40. Kf3 {[%emt 0:00:02]} b4 $2 {[%emt 0:00:02][%mdl 8192]} (40... Be7 $16 41. Ke4 Kf8) 41. cxb4 {[%emt 0:00:01]} Bxb4 {[%emt 0:00:00]} 42. Ke4 {[%emt 0:00:01]} Be7 {[%emt 0:00:05]} 43. Bc3 {[%emt 0:00:02]} Bc5 {[%emt 0:00:03]} 44. f3 {[%emt 0:00:01]} Kf8 {[%emt 0:00:02]} 45. Bd4 $2 {[%emt 0:00:04]} (45. f4 Ba3 46. Kd4 Bd6 47. Bd2 c3 48. Kxc3 (48. Bxc3 Bxf4 49. Kc5 Bh2 $18) 48... Bc7 49. Kc4 Bb8 50. Kb5) 45... Bb4 $2 {[%emt 0:00:01][%mdl 8192]} (45... Bxd4 $11 46. Kxd4 e5+ 47. Kc3 (47. Kxc4 Ke7 $11) (47. Kxe5 c3) 47... Ke8) 46. Be5 {[%emt 0:00:01]} Bc5 {[%emt 0:00:00]} 47. Bc3 {[%emt 0:00:02]} Bb6 {[%emt 0:00:02]} 48. f4 {[%emt 0:00:03]} Bc5 {[%emt 0:00:01]} 49. Bd2 {[%emt 0:00:02]} Ke7 {[%emt 0:00:02] [#]} 50. Bc3 {[%emt 0:00:01]} (50. Ke5 $142 $1 Bd6+ 51. Kd4 c3 52. Kxc3 (52. Bxc3 Bxf4 53. Ke4 {[%mdl 64] Discovered Attack} Bh6 $18) 52... e5 53. Kd3 exf4 54. Bc3 Kf8 55. Ke4) 50... Kf8 $18 {[%emt 0:00:01]} 51. Bb2 $2 {[%emt 0:00:01]} (51. Be5 $18 {Black must now prevent Bc3.} Bb6 52. Bc3) 51... Bb6 $2 {[%emt 0:00:02][%mdl 8192]} (51... Bb4 $16) 52. Ba3+ {[%emt 0:00:01]} Ke8 {[%emt 0:00:02]} 53. Bb4 {[%emt 0:00:05]} (53. h6 $142 gxh6 54. Ke5 Kd7 55. g7 Kc6 56. g8=Q c3 57. Qxe6+ Kc7 58. Kd5) 53... Bc7 {[%emt 0:00:00]} 54. f5 $2 {[%emt 0:00:02]} (54. Bd2 $18 {is the precise move to win. aiming for Kd4.} Ke7 55. Bc3) 54... exf5+ $16 {[%emt 0:00:00]} 55. Kxf5 {[%emt 0:00:01][%cal Oh5h6] Intending h6! and mate.} Bd8 $2 {[%emt 0:00:03][%mdl 8192]} (55... Bb6 $16) 56. Ke6 $2 {[%emt 0:00:02]} (56. h6 $1 {mates} Bf6 57. h7 Kd8 58. h8=Q+ Kc7 59. Ke6 c3 60. Qa8 Kb6 61. Qa5+ Kb7 62. Qb5+ Ka7 63. Bc5+ Ka8 64. Qa6+ Kb8 65. Bd6#) 56... Bg5 {[%emt 0:00:01]} 57. Kd5 {[%emt 0:00:03]} Kd7 {[%emt 0:00:03]} 58. Bc3 $1 {[%emt 0:00:02]} (58. Kxc4 $6 Ke6 $11) 58... Bh6 {[%emt 0:00:01]} 59. Bd4 {[%emt 0:00:01]} Ke7 {[%emt 0:00:00]} 60. Be5 {[%emt 0:00:05]} ({Don't do} 60. Kxc4 $6 Kf8 61. Bc5+ Ke8 $18) 60... Kd7 {[%emt 0:00:01]} 61. Bc3 {[%emt 0:00:00]} ({Don't play} 61. Kxc4 $6 Ke7 62. Kd5 Kf8 $18) 61... Ke7 {[%emt 0:00:01]} 62. Bb2 {[%emt 0:00:01]} Kd7 {[%emt 0:00:01]} 63. Ba1 {[%emt 0:00:02]} Ke7 {[%emt 0:00:02]} 64. Bd4 {[%emt 0:00:02]} Kd7 {[%emt 0:00:00]} 65. Kxc4 {[%emt 0:00:04] White is clearly better.} Ke6 {[%emt 0:00:01]} 66. Kd3 {[%emt 0:00:02]} Kf5 {[%emt 0:00:00]} 67. Ba1 {Weighted Error Value: White=0.68/Black=0.67} ({Not} 67. Be3 Kg4 $11) 1/2-1/2

[Event "Maharashtra Challenge Matches 2023"]
[Site "Nagpur"]
[Date "2023.06.05"]
[Round "9.1"]
[White "Short, Nigel D"]
[Black "Sadhwani, Raunak"]
[Result "0-1"]
[Annotator "TA"]
[ECO "B08"]
[WhiteElo "2597"]
[BlackElo "2627"]
[PlyCount "124"]
[EventDate "2023.06.03"]
[EventType "match"]
[EventCountry "IND"]
[SourceTitle "playchess.com"]
[Source "ChessBase"]
[SourceQuality "1"]
[TimeControl "180+2"]

{[%evp 12,124,44,22,39,20,22,20,47,49,29,44,42,26,40,15,15,17,16,16,19,13,13,12,28,7,45,43,40,43,35,29,39,47,40,18,12,0,0,0,66,-22,-4,-20,-31,-79,-5,-97,-91,-149,-141,-358,-339,-329,-320,-821,-306,-833,-830,-29980,-1136,-2425,-793,-741,-758,-1247,-909,-5597,0,0,0,0,0,-698,-683,-797,-813,-782,-739,-29961,-2091,-29985,-29986,-29977,-688,-649,0,-58,-47,-81,-20,-20,-20,-317,-310,-310,-302,-1224,-1082,-29989,-1827,-5189,-2214,-2096,-1793,-1806,-1570,-1340,-1215,-1693,-1617,-1351,-1005,-29991,0]} 1. d4 {[%emt 0:00:02]} Nf6 {[%emt 0:00:01]} 2. Nf3 {[%emt 0:00:01]} g6 {[%emt 0:00:01]} 3. Nc3 {[%emt 0:00:01]} Bg7 {[%emt 0:00:01]} 4. e4 {[%emt 0:00:02]} d6 {[%emt 0:00:01]} 5. Be2 {[%emt 0:00:01]} O-O {[%emt 0:00:02]} 6. O-O {[%emt 0:00:01]} Nc6 {[%emt 0:00:01]} 7. Be3 {[%emt 0:00:05]} (7. d5 $5 {[%cal Rd5c6]} Ne5 8. Nxe5 dxe5 9. Bg5 $14) 7... a6 {[%emt 0:00:11] B08: Pirc Defence: Classical System.} 8. a4 {[%emt 0:00:03]} (8. d5 $5 {[%cal Rd5c6]} Ne5 9. Nxe5 dxe5 10. Qd2 $14) 8... Re8 $5 {[%emt 0:00:13][%mdl 4] [#] Exploring less charted territory.} 9. a5 $146 {[%emt 0:00:20]} ({Predecessor:} 9. h3 e5 10. d5 Nd4 11. Nxd4 exd4 12. Bxd4 Nxe4 13. Bxg7 Kxg7 14. Nxe4 Rxe4 15. Bf3 Rf4 {½-½ Araujo Sanchez,J (2264)-Galperin,P (2518) Titled Tuesday intern op 15 Mar Late blitz 2022 (2)}) 9... Ng4 {[%emt 0:00:12] The position is equal.} 10. Bg5 {[%emt 0:00:02]} h6 {[%emt 0:00:02]} 11. Bh4 {[%emt 0:00:02]} g5 {[%emt 0:00:06]} 12. Bg3 {[%emt 0:00:01]} e5 {[%emt 0:00:02]} 13. d5 {[%emt 0:00:02]} Nd4 {[%emt 0:00:31]} 14. Nd2 {[%emt 0:00:12]} Nxe2+ {[%emt 0:00:17]} 15. Qxe2 {[%emt 0:00:04]} f5 16. exf5 {[%emt 0:00:02]} Bxf5 {[%emt 0:00:11]} 17. Nce4 {[%emt 0:00:05]} Nf6 {[%emt 0:00:02]} 18. c4 {[%emt 0:00:02]} Bg6 {[%emt 0:00:11]} 19. Nxf6+ {[%emt 0:00:17]} Qxf6 {[%emt 0:00:01]} 20. Ne4 {[%emt 0:00:02]} Qf5 {[%emt 0:00:01]} 21. f3 {[%emt 0:00:02]} g4 {[%emt 0:00:10]} 22. Rae1 {[%emt 0:00:09]} h5 {[%emt 0:00:35]} 23. b4 {[%emt 0:00:21]} (23. c5 {feels hotter.} gxf3 24. Qc4 Qd7 25. Rxf3 Qb5 26. Qxb5 axb5 27. cxd6 Bxe4 28. Rxe4 cxd6 29. Be1) 23... Rf8 {[%emt 0:00:11]} 24. c5 {[%emt 0:00:06]} gxf3 {[%emt 0:00:07]} 25. gxf3 {[%emt 0:00:17]} Qd7 {[%emt 0:00:21]} (25... Rad8 $11) 26. Qc4 {[%emt 0:00:10]} ({White should try} 26. Kh1 $14) 26... Qe7 {[%emt 0:00:05]} (26... Bh6 $5 {[%cal Rg8h7]}) 27. h4 Bh6 {[%emt 0:00:05] Repels Ng5} 28. Re2 {[%emt 0:00:18]} (28. Rf2 $15) 28... Kh7 {[%emt 0:00:03]} ({Better is} 28... Rf7 $17 {Black wants to play ...Raf8.} 29. Rg2 Kh7) 29. Rc2 {[%emt 0:00:10]} (29. f4 $1 $11) 29... Rf7 $1 $17 {[%emt 0:00:01]} 30. Kh1 {[%emt 0:00:12]} (30. Rg2 $142) 30... Raf8 {[%emt 0:00:02]} 31. Qd3 $2 {[%emt 0:00:03]} (31. Qe2 $17 {might work better.}) 31... Bf4 $19 {[%emt 0:00:07] And now ...Bxg3 would win.} 32. Be1 {[%emt 0:00:03]} Qd7 {[%emt 0:00:05]} 33. Rg2 $2 {[%emt 0:00:06]} (33. Kg2) 33... Rg7 $2 {[%emt 0:00:04]} (33... Qh3+ 34. Kg1 Rg7) 34. Kg1 $2 {[%emt 0:00:05]} (34. Rff2) 34... Qh3 {[%emt 0:00:03]} 35. Bg3 {[%emt 0:00:04]} Kh8 {[%emt 0:00:02]} (35... Bxe4 $142 36. Qxe4+ Kg8 37. Kf2 Bxg3+ 38. Rxg3 Rxg3 39. Ke2 Rf4 40. Qd3 Rd4 41. Qe3 Rxb4 42. Rf2 Rb2+ 43. Kd3 Rb3+ 44. Kd2 Rxe3 45. Kxe3 Qxh4 46. Ke2 Qd4 47. Rh2 Rg1 48. cxd6 cxd6 49. f4 exf4 50. Rh3 Rg2+ 51. Kf3 Rf2#) 36. Rff2 {[%emt 0:00:22]} Bxe4 {[%emt 0:00:02]} (36... Bxg3 $142 37. Qd2 Bxe4 38. Qh6+ Kg8 39. Qe6+ Qxe6 40. dxe6 Bxf2+ 41. Kxf2 Rxf3+ 42. Kg1 Rxg2+ 43. Kxg2 Bd5 44. Kh2 e4 45. cxd6 cxd6 46. e7 Kf7 47. e8=R Kxe8 48. b5 e3 49. bxa6 bxa6 50. Kg2 e2 51. Kg1 e1=Q+ 52. Kh2 Qg3+ 53. Kh1 Rf8#) 37. fxe4 {[%emt 0:00:02]} Rfg8 {[%emt 0:00:01][%cal Rg7g3]} (37... Rxg3 38. Rxg3 Bxg3 39. Rxf8+ Kg7 40. Qf3 Qh2+ 41. Kf1 Qh3+ 42. Ke2 Qh2+ 43. Kf1 Qh3+ 44. Qg2 Qxg2+ 45. Kxg2 Kxf8 46. c6 bxc6 47. Kxg3 $18) 38. Qf3 {[%emt 0:00:06]} Rg4 {[%emt 0:00:02]} (38... Rxg3 $2 39. Qxh5+ Kg7 40. Rxg3+ Qxg3+ 41. Rg2 $18) 39. Kf1 {[%emt 0:00:04]} Bxg3 $2 {[%emt 0:00:02]} (39... Rxg3 $19 40. Qxh5+ Kg7) 40. Qf6+ $11 {[%emt 0:00:02]} Kh7 {[%emt 0:00:02][%cal Bh8h7,Bh7h6,Bh6g6][%mdl 32]} 41. Qf7+ {[%emt 0:00:02]} Kh6 {[%emt 0:00:02]} 42. Rf6+ {[%emt 0:00:04][%mdl 8192] [#]} (42. Qe6+ $11 R8g6 43. Qc8 Qh1+ 44. Rg1 Qxg1+ 45. Kxg1 Bxh4+ 46. Kh1 Bxf2 47. Qf8+ Kg5 48. Qf5+ Kh6 49. Qf8+ Kg5 50. Qf5+ Kh6 51. Qf8+) 42... R4g6 $1 $19 {[%emt 0:00:01]} 43. Rxg6+ {[%emt 0:00:02]} Rxg6 {[%emt 0:00:00]} 44. Qf8+ {[%emt 0:00:01] [#]} Rg7 $1 {[%emt 0:00:02]} 45. Qh8+ {[%emt 0:00:03]} Kg6 {[%emt 0:00:04] ( -> ...Qh1+)} 46. Qe8+ {[%emt 0:00:01]} Rf7+ {[%emt 0:00:01]} 47. Kg1 {[%emt 0:00:02]} Qg4 {[%emt 0:00:04]} (47... Kg7 $142 48. Qe6 Qxh4 49. Qxf7+ Kxf7 50. c6 Qg4 51. Rf2+ Bxf2+ 52. Kxf2 bxc6 53. Ke3 h4 54. Kd3 h3 55. Kd2 Qf3 56. dxc6 h2 57. Kc2 h1=Q 58. Kb2 Qh2+ 59. Kc1 Qfh1#) 48. Qe6+ {[%emt 0:00:06]} Rf6 $2 {[%emt 0:00:02]} (48... Qxe6 $19 49. dxe6 Rf3) 49. Qxg4+ (49. Qg8+ $11 Kh6 50. Rxg3 Qd1+ 51. Kh2 Rf2+ 52. Rg2 Rxg2+ 53. Qxg2) 49... hxg4 $15 {[%emt 0:00:01]} 50. Rxg3 $11 {[%emt 0:00:03][%mdl 4096] Endgame KR-KR} Kh5 {[%emt 0:00:00]} (50... Rf4 $17 51. b5 Kh5 52. bxa6 bxa6 53. cxd6 cxd6) 51. Rc3 $1 {[%emt 0:00:02]} Rf4 {[%emt 0:00:03]} 52. c6 $2 {[%emt 0:00:01][%mdl 8192]} (52. cxd6 $11 {and White has nothing to worry.} cxd6 53. Rc7) 52... bxc6 $19 {[%emt 0:00:02]} ({Don't take} 52... Rxe4 53. b5 (53. cxb7 Rxb4 54. Rxc7 Kxh4 $17) 53... bxc6 54. b6 $18 (54. bxa6 $2 Ra4 $19)) 53. Rxc6 {[%emt 0:00:01]} Rxe4 {[%emt 0:00:01]} ({Inferior is} 53... Kxh4 54. Rxc7 Rxe4 55. Rc6 $17) 54. Rxa6 $2 {[%emt 0:00:03]} (54. Rxc7 Kxh4 55. Rd7) 54... Rxb4 {[%emt 0:00:02]} 55. Rb6 {[%emt 0:00:01]} Ra4 {[%emt 0:00:03]} (55... cxb6 $142 56. a6 Ra4 57. Kg2 Kxh4 58. Kg1 g3 59. Kf1 Ra1+ 60. Ke2 g2 61. Kd2 g1=Q 62. Kc3 Qd4+ 63. Kb3 Qd3+ 64. Kb4 Rb1+ 65. Ka4 Qxa6#) 56. Rc6 {[%emt 0:00:02]} Rxa5 {[%emt 0:00:02][%cal Ba4a5,Ba5d5,Bd5d3][%mdl 32]} 57. Rxc7 {[%emt 0:00:02]} Rxd5 {[%emt 0:00:02]} 58. Rh7+ {[%emt 0:00:02]} Kg6 {[%emt 0:00:01]} 59. Rh8 {[%emt 0:00:03]} Rd3 {[%emt 0:00:01]} 60. Kg2 {[%emt 0:00:01]} e4 {[%emt 0:00:01]} 61. Rd8 {[%emt 0:00:03]} Kh7 {[%emt 0:00:01] Hoping for ...d5.} 62. Rxd6 {[%emt 0:00:00]} Kg7 $2 {[%emt 0:00:02][%mdl 32768] An exciting game.   Weighted Error Value: White=1.26/Black=0.67. Sensor Board Error (Ke4/e5)?} (62... Rxd6 {mates} 63. Kg3 e3 64. h5 Re6 65. Kh4 e2 66. Kxg4 e1=Q 67. Kf3 Re3+ 68. Kg4 Qg3+ 69. Kf5 Re5+ {[%mdl 64] Skewer} 70. Kf6 Qg7#) 0-1

[Event "Maharashtra Challenge Matches 2023"]
[Site "Nagpur"]
[Date "2023.06.05"]
[Round "10.1"]
[White "Svidler, Peter"]
[Black "Vidit, Santosh Gujrathi"]
[Result "1-0"]
[Annotator "TA"]
[ECO "A30"]
[WhiteElo "2683"]
[BlackElo "2712"]
[PlyCount "74"]
[EventDate "2023.06.03"]
[EventType "match"]
[EventCountry "IND"]
[SourceTitle "playchess.com"]
[Source "ChessBase"]
[SourceQuality "1"]
[TimeControl "180+2"]

{[%evp 13,74,0,0,0,0,0,57,65,94,88,107,88,125,37,45,52,45,0,46,2,84,89,67,0,0,0,0,-47,-12,-56,0,-38,-35,-100,-123,-52,8,0,7,10,143,135,423,411,529,511,497,483,396,346,397,390,377,386,370,365,1182,1155,2019,1945,5304,3566,29987]} 1. c4 {[%emt 0:00:01]} c5 {[%emt 0:00:03]} 2. Nf3 {[%emt 0:00:02]} Nf6 {[%emt 0:00:01]} 3. g3 {[%emt 0:00:03]} Nc6 {[%emt 0:00:02]} 4. Bg2 {[%emt 0:00:01]} d5 {[%emt 0:00:01]} 5. cxd5 {[%emt 0:00:01]} Nxd5 {[%emt 0:00:01]} 6. Nc3 {[%emt 0:00:02]} Nc7 {[%emt 0:00:03]} 7. a3 $1 {[%emt 0:00:01][%mdl 4] is currently scoring better than 7.0-0.} g6 {[%emt 0:00:03]} 8. h4 {[%emt 0:00:01] A34: Symmetrical English: 2 Nc3, lines with ...d5.} Bg4 {[%emt 0:00:02] [#]} 9. Ne4 $146 {[%emt 0:00:51]} ({Predecessor:} 9. Na4 c4 10. Nc5 Bg7 11. O-O Qc8 12. d4 cxd3 13. Qxd3 O-O 14. Be3 Ne6 15. Nxe6 Bxe6 {½-½ Gukesh,D (2732)-Narayanan,S (2660) Sharjah Masters 6th 2023 (3)}) 9... e5 {[%emt 0:00:49]} ({Black should play} 9... c4 $11) 10. d3 $1 $14 {[%emt 0:00:06] White is slightly better.} (10. Qb3 Bxf3 11. Qxf3 (11. Bxf3 Nd4 $17) 11... f5 $15) 10... h6 {[%emt 0:00:43] Against Bg5} 11. Be3 {[%emt 0:00:26]} Na6 {[%emt 0:00:29]} 12. Qa4 {[%emt 0:00:16]} Bd7 {[%emt 0:00:09]} 13. Qb3 {[%emt 0:00:00] White has more active pieces.} (13. Rc1 $16) 13... f5 14. Nc3 {[%emt 0:00:13]} Nc7 {[%emt 0:00:19]} 15. Rc1 {[%emt 0:00:10]} (15. Qxb7 $2 Rb8 $19) 15... Rb8 {[%emt 0:00:18]} (15... b6 $11 {was preferrable.}) 16. Nd5 {[%emt 0:00:04]} b6 {[%emt 0:00:07]} (16... Nxd5 $1 $11 17. Qxd5 Qf6) 17. Nxc7+ $16 {[%emt 0:00:13]} Qxc7 {[%emt 0:00:01]} 18. Qc4 {[%emt 0:00:08]} (18. Qa2 $14) 18... Qd6 $11 {[%emt 0:00:05]} 19. Bd2 {[%emt 0:00:08][%cal Ob2b4]} a5 {[%emt 0:00:05]} 20. Bc3 {[%emt 0:00:08]} (20. Be3 $11) 20... Bg7 {[%emt 0:00:02]} (20... b5 $5 {[%cal Rb5c4]} 21. Qa2 Be6 $15) 21. Nd2 {[%emt 0:00:01]} Be6 {[%emt 0:00:05] Inhibits Qd5.} (21... b5 $1 $15 22. Qa2 Be6) 22. Qa4 {[%emt 0:00:02]} b5 {[%emt 0:00:02] Prevents Nc4} 23. Qc2 {[%emt 0:00:10]} (23. Qd1 $1 $15) 23... b4 $17 {[%emt 0:00:02]} 24. Qa4 {[%emt 0:00:02]} Rb6 {[%emt 0:00:11]} (24... Kd7 $15 25. axb4 axb4) 25. axb4 {[%emt 0:00:01]} axb4 {[%emt 0:00:02]} 26. Bxb4 {[%emt 0:00:02]} cxb4 {[%emt 0:00:05]} (26... Rxb4 $11 {keeps the balance.} 27. Qxc6+ (27. Bxc6+ Kf8 $11) 27... Qxc6 28. Bxc6+ Ke7) 27. Bxc6+ $16 {[%emt 0:00:04]} (27. Rxc6 $6 Rxc6 28. Nc4 (28. Bxc6+ Ke7 $14) (28. Qxc6+ Qxc6 29. Bxc6+ Ke7 $15) 28... Qc5 29. Bxc6+ (29. Qxc6+ Qxc6 30. Bxc6+ Ke7 $11) 29... Ke7 $14) 27... Kd8 $2 {[%emt 0:00:03][%mdl 8192] Loses the game.} (27... Kf8 $16 {might work better.}) 28. O-O $18 {[%emt 0:00:09]} e4 {[%emt 0:00:01]} 29. Qa5 {[%emt 0:00:02]} Bd4 {[%emt 0:00:02]} 30. e3 (30. dxe4 Qxg3+ 31. Kh1 Qxh4+ 32. Kg2 Qg5+ 33. Kh1 fxe4 34. Qa8+ Ke7 35. Qa7+ Kf8 36. Bxe4 Rb5 37. Qa8+ (37. Qxd4 $2 {is the wrong capture.} Qh4+ 38. Kg1 Rg5+ 39. Bg2 Qxd4 $19) 37... Kg7 38. Rc7+ Bf7 39. Rxf7+ Kxf7 $19) 30... Bxe3 31. Kg2 {[%emt 0:00:15]} (31. fxe3 Qxg3+ 32. Kh1 Qh3+ 33. Kg1 Qg3+ 34. Kh1 Qh3+ 35. Kg1 Qg3+ $11) 31... Bd4 {[%emt 0:00:04]} 32. dxe4 {[%emt 0:00:03] [#] Nf3 would be deadly.} Ke7 {[%emt 0:00:02]} 33. Qa7+ {[%emt 0:00:05]} Kf6 {[%emt 0:00:02]} 34. Nf3 {[%emt 0:00:03]} (34. f4 Qe7 35. Qa1 (35. e5+ Kf7 $14) 35... Kg7 $16) 34... fxe4 $2 {[%emt 0:00:02]} (34... Rxc6 35. Rxc6 (35. Qxd4+ Qxd4 36. Nxd4 Rxc1 $16) 35... Bxa7 36. Rxd6 fxe4) 35. Nxd4 {[%emt 0:00:01] White is clearly winning.} ({And not} 35. Bxe4 Bxb2 36. g4 g5 $11) 35... Qxd4 {[%emt 0:00:03]} 36. Rfd1 {[%emt 0:00:01][%mdl 64] [#] Deflection} Qe5 {[%emt 0:00:05]} 37. Qxb6 b3 {An entertaining game by Svidler.   Weighted Error Value: White=0.21 (precise) /Black=0.47} 1-0